fUST/lending_fUST_20260116
["ID","MTS","AMOUNT","RATE_DAILY","PERIOD"]
[402123034,1768531842371,-500.0,0.00015068,2]
[402123035,1768531842380,-500.0,0.00015068,2]
[402123036,1768531842389,-500.0,0.00015068,2]
[402123037,1768531842398,-500.0,0.00015068,2]
[402123038,1768531842407,-500.0,0.00015068,2]
[402123039,1768531842417,-500.0,0.00015068,2]
[402123040,1768531842426,-500.0,0.00015068,2]
[402123041,1768531842435,-500.0,0.00015068,2]
[402123042,1768531842444,-500.0,0.00015068,2]
[402123043,1768531842453,-164.322877,0.00015068,2]
[402123044,1768531842462,-739.0,0.00015195,2]
[402123045,1768531842472,-500.0,0.00015195,2]
[402123046,1768531842481,-500.0,0.00015205,2]
[402123047,1768531842490,-500.36819208,0.00015205,2]
[402123048,1768531842500,-500.25763675,0.00015205,2]
[402123049,1768531842509,-500.0,0.00015205,2]
[402123050,1768531842518,-500.0,0.00015205,2]
[402123051,1768531842527,-500.68266513,0.00015205,2]
[402123052,1768531842536,-500.0,0.00015205,2]
[402123053,1768531842545,-500.0,0.00015205,2]
[402123054,1768531842554,-500.43100789,0.00015205,2]
[402123055,1768531842564,-516.02613097,0.00015205,2]
[402123056,1768531842573,-169.0,0.000153,2]
[402123057,1768531842582,-169.0,0.000153,2]
[402123058,1768531842591,-2000.0,0.00015329,7]
[402123059,1768531842601,-739.0,0.00015332,2]
[402123060,1768531842610,-500.0,0.00015332,2]
[402123061,1768531842620,-601.14258472,0.00015342,2]
[402123063,1768531842629,-199.81913383,0.00015342,2]
[402123065,1768531842639,-450.19771754,0.00015342,2]
[402123067,1768531842648,-150.37737328,0.00015342,2]
[402123069,1768531842658,-500.0,0.00015342,2]
[402123070,1768531842667,-891.24466261,0.00015342,2]
[402123073,1768531842815,-606.16105087,0.00015342,2]
[402123075,1768531842825,-2066.58649571,0.00015342,2]
[402123077,1768531842834,-2000.0,0.00015342,2]
[402123079,1768531842843,-2500.0,0.00015464,2]
[402123081,1768531842852,-739.0,0.00015469,2]
[402123083,1768531842862,-532.85490275,0.00015469,2]
[402123085,1768531842871,-500.0,0.00015479,2]
[402123087,1768531842881,-500.0,0.00015578,2]
[402123090,1768531842890,-500.0,0.00015578,2]
[402123093,1768531842899,-500.0,0.00015578,2]
[402123095,1768531842908,-500.0,0.00015578,2]
[402123098,1768531842919,-500.0,0.00015578,2]
[402123100,1768531842931,-500.0,0.00015578,2]
[402123103,1768531842941,-500.0,0.00015578,2]
[402123105,1768531842951,-500.0,0.00015578,2]
[402123107,1768531842960,-500.0,0.00015578,2]
[402123109,1768531842971,-500.0,0.00015578,2]
[402123111,1768531842980,-500.0,0.00015578,2]
[402123113,1768531842990,-500.0,0.00015578,2]
[402123115,1768531843000,-500.0,0.00015578,2]
[402123117,1768531843009,-500.0,0.00015578,2]
[402123119,1768531843018,-500.0,0.00015578,2]
[402123122,1768531843027,-500.0,0.00015578,2]
[402123124,1768531843037,-442.65597626,0.00015578,2]
[402123126,1768531843046,-739.0,0.00015606,2]
[402123128,1768531843055,-1613.0,0.00015615,2]
[402123130,1768531843064,-300.0,0.00015616,2]
[402123132,1768531843074,-358.4697162,0.0001566,2]
[402123134,1768531843083,-739.0,0.00015743,2]
[402123136,1768531843094,-901.60735931,0.00015749,30]
[402123138,1768531843103,-499.3,0.00015749,30]
[402123140,1768531843113,-190.0,0.00015749,30]
[402123142,1768531843122,-500.0,0.00015749,30]
[402123144,1768531843132,-500.0,0.00015749,30]
[402123146,1768531843142,-500.0,0.00015749,30]
[402123148,1768531843151,-500.0,0.00015749,30]
[402123150,1768531843160,-500.0,0.00015749,30]
[402123152,1768531843178,-523.05675553,0.00015749,30]
[402123154,1768531843196,-791.6929879,0.00015749,30]
[402123156,1768531843206,-500.0,0.00015749,30]
[402123158,1768531843215,-500.0,0.00015749,30]
[402123160,1768531843224,-500.0,0.00015749,30]
[402123162,1768531843234,-500.0,0.00015749,30]
[402123164,1768531843243,-500.0,0.00015749,30]
[402123166,1768531843252,-500.0,0.00015749,30]
[402123168,1768531843261,-500.0,0.00015749,30]
[402123170,1768531843271,-500.0,0.00015749,30]
[402123172,1768531843280,-500.0,0.00015749,30]
[402123174,1768531843289,-500.0,0.00015749,30]
[402123176,1768531843297,-500.0,0.00015749,30]
[402123178,1768531843307,-500.0,0.00015749,30]
[402123180,1768531843316,-500.0,0.00015749,30]
[402123182,1768531843325,-500.0,0.00015749,30]
[402123184,1768531843335,-500.0,0.00015749,30]
[402123186,1768531843345,-500.0,0.00015749,30]
[402123188,1768531843355,-500.0,0.00015749,30]
[402123190,1768531843365,-500.0,0.00015749,30]
[402123192,1768531843374,-500.0,0.00015749,30]
[402123194,1768531843383,-500.0,0.00015749,30]
[402123196,1768531843393,-500.0,0.00015749,30]
[402123198,1768531843402,-500.0,0.00015749,30]
[402123200,1768531843411,-500.0,0.00015749,30]
[402123202,1768531843422,-500.0,0.00015749,30]
[402123204,1768531843430,-500.0,0.00015749,30]
[402123206,1768531843440,-500.0,0.00015749,30]
[402123208,1768531843449,-500.0,0.00015749,30]
[402123211,1768531843460,-500.0,0.00015749,30]
[402123212,1768531843470,-500.0,0.00015749,30]
[402123215,1768531843479,-500.0,0.00015749,30]
[402123217,1768531843489,-499.3,0.00015749,30]
[402123219,1768531843498,-500.0,0.00015749,30]
[402123221,1768531843508,-516.97362818,0.00015749,30]
[402123223,1768531843517,-500.0,0.00015749,30]
[402123224,1768531843526,-500.0,0.00015749,30]
[402123225,1768531843535,-500.0,0.00015749,30]
[402123226,1768531843544,-500.0,0.00015749,30]
[402123227,1768531843554,-500.0,0.00015749,30]
[402123228,1768531843563,-500.0,0.00015749,30]
[402123229,1768531843573,-500.0,0.00015749,30]
[402123230,1768531843582,-500.0,0.00015749,30]
[402123231,1768531843593,-500.0,0.00015749,30]
[402123232,1768531843603,-500.0,0.00015749,30]
[402123234,1768531843612,-500.0,0.00015749,30]
[402123236,1768531843622,-500.0,0.00015749,30]
[402123238,1768531843631,-500.0,0.00015749,30]
[402123239,1768531843640,-500.0,0.00015749,30]
[402123240,1768531843649,-500.0,0.00015749,30]
[402123241,1768531843659,-500.0,0.00015749,30]
[402123242,1768531843669,-500.0,0.00015749,30]
[402123243,1768531843678,-500.0,0.00015749,30]
[402123244,1768531843688,-500.0,0.00015749,30]
[402123245,1768531843697,-500.0,0.00015749,30]
[402123246,1768531843706,-500.0,0.00015749,30]
[402123247,1768531843715,-500.0,0.00015749,30]
[402123248,1768531843724,-500.0,0.00015749,30]
[402123249,1768531843733,-500.0,0.00015749,30]
[402123250,1768531843742,-500.0,0.00015749,30]
[402123251,1768531843751,-500.0,0.00015749,30]
[402123252,1768531843761,-500.0,0.00015749,30]
[402123253,1768531843770,-500.0,0.00015749,30]
[402123254,1768531843780,-500.0,0.00015749,30]
[402123256,1768531843790,-500.0,0.00015749,30]
[402123257,1768531843799,-500.0,0.00015749,30]
[402123258,1768531843809,-500.0,0.00015749,30]
[402123260,1768531843818,-200.2366366,0.00015753,2]
[402123262,1768531843827,-739.0,0.0001588,2]
[402123264,1768531843836,-2500.0,0.0001589,2]
[402123266,1768531843845,-169.0,0.000159,2]
[402123268,1768531843855,-169.0,0.000159,2]
[402123270,1768531843864,-3000.0,0.00016012,2]
[402123272,1768531843874,-739.0,0.00016017,2]
[402123274,1768531843883,-1000.0,0.00016095,2]
[402123276,1768531843893,-492.0,0.00016095,2]
[402123278,1768531843902,-2000.0,0.00016144,7]
[402123280,1768531843911,-5060.620801,0.00016144,7]
[402123282,1768531843922,-747.92718303,0.00016154,2]
[402123284,1768531843935,-380.6,0.00016438,2]
[402123286,1768531843944,-164.33129574,0.00016438,2]
[402123288,1768531843954,-3000.0,0.00016438,2]
[402123290,1768531843962,-200.10020518,0.00016473,2]
[402123292,1768531843972,-3500.0,0.0001656,2]
[402123294,1768531843981,-9039.973073,0.00016936,7]
[402123296,1768531843990,-4751.137987,0.00016936,7]
[402123298,1768531844000,-380.6,0.00016936,2]
[402123300,1768531844009,-712.670698,0.00016936,7]
[402123302,1768531844019,-2000.0,0.00016959,7]
[402123304,1768531844029,-3500.0,0.00016986,2]
[402123306,1768531844038,-1005.66172212,0.00017108,2]
[402123308,1768531844048,-778.0,0.00017177,2]
[402123310,1768531844057,-9221.1641186,0.0001724,2]
[402123312,1768531844066,-656.126762,0.00017354,7]
[402123314,1768531844076,-1355.995961,0.00017354,7]
[402123316,1768531844085,-5000.0,0.00017412,2]
[402123318,1768531844093,-904.141148,0.00017412,7]
[402123320,1768531844103,-1075.22869,0.00017412,7]
[402123322,1768531844112,-226.035288,0.00017412,7]
[402123324,1768531844121,-380.6,0.00017434,2]
[402123326,1768531844131,-1041.66666667,0.00017471,2]
[402123328,1768531844139,-2513.63240842,0.00017534,2]
[402123330,1768531844148,-7939.27269168,0.00017605,2]
[402123332,1768531844158,-400.36877394,0.0001766,2]
[402123334,1768531844168,-1000.0,0.00017705,2]
[402123336,1768531844177,-791.0,0.00017705,2]
[402123338,1768531844187,-11877.844969,0.00017705,7]
[402123341,1768531844196,-2000.0,0.00017774,7]
[402123343,1768531844205,-17799.17608235,0.000178,3]
[402123345,1768531844215,-380.6,0.00017932,2]
[402123347,1768531844224,-3000.0,0.00018027,7]
[402123349,1768531844234,-269.319381,0.00018037,7]
[402123351,1768531844243,-2147.0,0.00018037,2]
[402123353,1768531844252,-1367.0,0.00018037,2]
[402123355,1768531844261,-629.0,0.00018037,2]
[402123357,1768531844271,-150.19,0.00018037,2]
[402123359,1768531844280,-150.202,0.00018037,2]
[402123361,1768531844289,-715.0,0.00018037,2]
[402123363,1768531844298,-380.6,0.0001843,2]
[402123365,1768531844307,-2108.592,0.00018565,7]
[402123367,1768531844316,-2000.0,0.00018589,7]
[402123369,1768531844325,-5933.05,0.000187,3]
[402123371,1768531844335,-5000.0,0.00018863,2]
[402123373,1768531844344,-169.0,0.000189,3]
[402123375,1768531844353,-169.06450074,0.000189,3]
[402123377,1768531844363,-275.49248429,0.000189,2]
[402123378,1768531844372,-303.10001603,0.000189,2]
[402123381,1768531844383,-380.6,0.00018928,2]
[402123383,1768531844392,-30000.0,0.00018952,2]
[402123385,1768531844402,-151.0,0.00018952,2]
[402123387,1768531844411,-151.0,0.00018952,2]
[402123389,1768531844422,-151.0,0.00018952,2]
[402123391,1768531844431,-151.0,0.00018952,2]
[402123393,1768531844440,-151.0,0.00018952,2]
[402123395,1768531844449,-151.0,0.00018952,2]
[402123397,1768531844459,-151.0,0.00018952,2]
[402123398,1768531844467,-151.0,0.00018952,2]
[402123401,1768531844477,-151.0,0.00018952,2]
[402123402,1768531844487,-151.0,0.00018952,2]
[402123404,1768531844496,-151.0,0.00018952,2]
[402123406,1768531844505,-1957.856,0.00018952,2]
[402123408,1768531844514,-151.0,0.00018952,2]
[402123411,1768531844524,-151.0,0.00018952,2]
[402123412,1768531844534,-151.0,0.00018952,2]
[402123414,1768531844543,-151.0,0.00018952,2]
[402123416,1768531844552,-151.0,0.00018952,2]
[402123419,1768531844561,-151.0,0.00018952,2]
[402123421,1768531844570,-151.0,0.00018952,2]
[402123422,1768531844580,-151.0,0.00018952,2]
[402123424,1768531844589,-151.0,0.00018952,2]
[402123427,1768531844599,-1610.17582663,0.00019,2]
[402123429,1768531844608,-3000.63608552,0.00019,2]
[402123430,1768531844617,-2030.296672,0.00019007,2]
[402123432,1768531844626,-2105.41764886,0.00019062,2]
[402123434,1768531844636,-303.10001603,0.00019089,2]
[402123436,1768531844645,-2183.31810187,0.00019117,2]
[402123438,1768531844654,-3000.0,0.00019123,7]
[402123440,1768531844663,-7939.27269167,0.00019138,2]
[402123442,1768531844673,-2264.10087164,0.00019172,2]
[402123444,1768531844682,-507.3243,0.00019178,2]
[402123446,1768531844691,-200.0,0.00019178,2]
[402123448,1768531844700,-507.3243,0.00019178,2]
[402123450,1768531844709,-507.3243,0.00019178,2]
[402123452,1768531844718,-507.3243,0.00019178,2]
[402123454,1768531844729,-507.3243,0.00019178,2]
[402123456,1768531844738,-1354.67,0.00019178,2]
[402123458,1768531844747,-1354.67,0.00019178,2]
[402123460,1768531844756,-1354.67,0.00019178,2]
[402123462,1768531844765,-1354.67,0.00019178,2]
[402123464,1768531844775,-1354.67,0.00019178,2]
[402123466,1768531844784,-1354.67,0.00019178,2]
[402123468,1768531844793,-1354.67,0.00019178,2]
[402123470,1768531844802,-1354.67,0.00019178,2]
[402123472,1768531844812,-1354.67,0.00019178,2]
[402123474,1768531844821,-1354.67,0.00019178,2]
[402123476,1768531844831,-1354.67,0.00019178,2]
[402123478,1768531844841,-1354.67,0.00019178,2]
[402123480,1768531844850,-1354.67,0.00019178,2]
[402123482,1768531844860,-1354.67,0.00019178,2]
[402123484,1768531844870,-1354.67,0.00019178,2]
[402123486,1768531844879,-1354.67,0.00019178,2]
[402123488,1768531844889,-1354.67,0.00019178,2]
[402123490,1768531844898,-1354.67,0.00019178,2]
[402123492,1768531844907,-1354.67,0.00019178,2]
[402123494,1768531844916,-1354.67,0.00019178,2]
[402123496,1768531844926,-1354.67,0.00019178,2]
[402123498,1768531844938,-1354.67,0.00019178,2]
[402123500,1768531844947,-1354.67,0.00019178,2]
[402123503,1768531844958,-1354.80968696,0.00019178,2]
[402123505,1768531844967,-175.42398088,0.00019178,2]
[402123506,1768531844979,-5000.0,0.00019178,2]
[402123510,1768531845000,-5000.0,0.00019178,2]
[402123512,1768531845012,-5000.0,0.00019178,2]
[402123514,1768531845023,-5000.0,0.00019178,2]
[402123516,1768531845032,-5000.0,0.00019178,2]
[402123518,1768531845043,-5000.0,0.00019178,2]
[402123520,1768531845054,-1796.040967,0.00019178,2]
[402123522,1768531845063,-1796.040967,0.00019178,2]
[402123524,1768531845073,-1796.040967,0.00019178,2]
[402123526,1768531845082,-1796.040967,0.00019178,2]
[402123528,1768531845092,-167.99,0.000192,2]
[402123570,1768531845461,-160.04,0.000192,2]
[402123573,1768531845483,-192.2,0.000192,2]
[402123575,1768531845493,-3038.76,0.000192,2]
[402123578,1768531845503,-11866.1,0.000192,3]
[402123580,1768531845512,-2347.87260389,0.00019227,2]
[402123582,1768531845521,-719.0,0.00019259,2]
[402123584,1768531845530,-303.10001603,0.00019278,2]
[402123586,1768531845540,-2434.74389024,0.00019282,2]
[402123588,1768531845549,-1582.0,0.00019331,2]
[402123590,1768531845559,-2524.82941417,0.00019337,2]
[402123592,1768531845568,-1582.0,0.00019367,2]
[402123594,1768531845577,-2618.2481025,0.00019392,2]
[402123596,1768531845586,-2000.0,0.00019404,7]
[402123598,1768531845596,-380.6,0.00019427,2]
[402123600,1768531845605,-187.119,0.00019428,2]
[402123602,1768531845615,-178.401,0.00019428,2]
[402123604,1768531845624,-2715.12328229,0.00019447,2]
[402123606,1768531845634,-303.10001603,0.00019467,2]
[402123608,1768531845643,-1000.0,0.00019475,2]
[402123610,1768531845653,-1000.0,0.00019475,2]
[402123612,1768531845663,-296.946124,0.00019476,7]
[402123614,1768531845672,-200.0,0.00019497,2]
[402123616,1768531845682,-204.50561505,0.00019497,2]
[402123618,1768531845692,-364672.32955597,0.00019498,2]
[402123620,1768531845701,-1796.040967,0.00019498,2]
[402123622,1768531845710,-1796.040967,0.00019498,2]
[402123624,1768531845720,-1796.040967,0.00019498,2]
[402123626,1768531845729,-1796.040967,0.00019498,2]
[402123628,1768531845739,-31110.0,0.000195,2]
[402123630,1768531845748,-475.0,0.000195,2]
[402123632,1768531845757,-475.0,0.000195,2]
[402123635,1768531845767,-475.0,0.000195,2]
[402123638,1768531845776,-475.0,0.000195,2]
[402123640,1768531845784,-475.0,0.000195,2]
[402123642,1768531845794,-475.0,0.000195,2]
[402123644,1768531845803,-475.0,0.000195,2]
[402123646,1768531845812,-475.0,0.000195,2]
[402123650,1768531845822,-475.0,0.000195,2]
[402123652,1768531845831,-475.0,0.000195,2]
[402123654,1768531845840,-475.0,0.000195,2]
[402123656,1768531845849,-475.0,0.000195,2]
[402123658,1768531845858,-475.0,0.000195,2]
[402123660,1768531845868,-475.0,0.000195,2]
[402123663,1768531845880,-475.0,0.000195,2]
[402123665,1768531845890,-475.0,0.000195,2]
[402123667,1768531845899,-475.0,0.000195,2]
[402123669,1768531845909,-475.0,0.000195,2]
[402123671,1768531845919,-411.268,0.000195,2]
[402123673,1768531845929,-1082.60301023,0.00019502,2]
[402123675,1768531845940,-3811.35994443,0.00019551,2]
[402123677,1768531845950,-475.0,0.00019656,2]
[402123679,1768531845959,-303.10001603,0.00019656,2]
[402123681,1768531845968,-442.26783167,0.0001966,2]
[402123683,1768531845978,-804.14140944,0.00019689,2]
[402123685,1768531845988,-5933.05,0.000197,3]
[402123687,1768531845998,-1582.0,0.00019707,2]
[402123689,1768531846009,-800.0,0.00019728,2]
[402123691,1768531846019,-579.60022608,0.0001973,2]
[402123693,1768531846029,-800.0,0.00019752,2]
[402123695,1768531846039,-9221.1641186,0.00019755,2]
[402123697,1768531846048,-1304.0,0.00019763,2]
[402123699,1768531846058,-800.0,0.00019766,2]
[402123701,1768531846068,-800.0,0.00019767,2]
[402123704,1768531846077,-800.0,0.00019774,2]
[402123706,1768531846086,-151.0,0.000198,2]
[402123708,1768531846096,-151.0,0.000198,2]
[402123710,1768531846107,-169.0,0.000198,3]
[402123712,1768531846116,-169.0,0.000198,3]
[402123714,1768531846126,-169.0,0.000198,2]
[402123716,1768531846136,-169.0,0.000198,2]
[402123718,1768531846148,-169.0,0.000198,4]
[402123720,1768531846157,-169.0,0.000198,4]
[402123722,1768531846166,-728.0,0.00019815,2]
[402123724,1768531846176,-800.0,0.00019815,2]
[402123726,1768531846186,-1304.0,0.00019819,2]
[402123728,1768531846195,-800.0,0.00019837,2]
[402123730,1768531846204,-3126.56503043,0.00019842,2]
[402123732,1768531846214,-162.380719,0.00019844,4]
[402123734,1768531846223,-250.0,0.00019844,4]
[402123736,1768531846235,-195.16916026,0.00019844,4]
[402123738,1768531846245,-251.71795936,0.00019844,4]
[402123740,1768531846254,-250.0,0.00019844,4]
[402123742,1768531846263,-250.0,0.00019844,4]
[402123744,1768531846273,-250.0,0.00019844,4]
[402123746,1768531846283,-151.0,0.00019844,4]
[402123748,1768531846293,-250.0,0.00019844,4]
[402123750,1768531846303,-151.0,0.00019844,4]
[402123752,1768531846312,-151.0,0.00019844,4]
[402123754,1768531846326,-250.0,0.00019844,4]
[402123756,1768531846336,-242.73673634,0.00019844,4]
[402123758,1768531846345,-151.0,0.00019844,4]
[402123760,1768531846354,-250.0,0.00019844,4]
[402123762,1768531846364,-151.0,0.00019844,4]
[402123765,1768531846378,-250.0,0.00019844,4]
[402123767,1768531846398,-162.380719,0.00019844,4]
[402123769,1768531846408,-151.0,0.00019844,4]
[402123771,1768531846418,-250.0,0.00019844,4]
[402123773,1768531846427,-151.0,0.00019844,4]
[402123775,1768531846437,-151.0,0.00019844,4]
[402123777,1768531846446,-168.3888056,0.00019844,4]
[402123779,1768531846455,-250.0,0.00019844,4]
[402123781,1768531846464,-151.0,0.00019844,4]
[402123783,1768531846474,-151.0,0.00019844,4]
[402123785,1768531846484,-174.61919141,0.00019844,4]
[402123787,1768531846493,-250.0,0.00019844,4]
[402123789,1768531846502,-151.0,0.00019844,4]
[402123791,1768531846511,-151.0,0.00019844,4]
[402123793,1768531846519,-181.08010149,0.00019844,4]
[402123795,1768531846528,-328.72476139,0.00019844,4]
[402123797,1768531846538,-151.0,0.00019844,4]
[402123799,1768531846547,-187.78006525,0.00019844,4]
[402123801,1768531846556,-151.0,0.00019844,4]
[402123803,1768531846565,-1000.0,0.00019844,4]
[402123805,1768531846579,-194.72792766,0.00019844,4]
[402123807,1768531846594,-151.0,0.00019844,4]
[402123810,1768531846604,-1000.0,0.00019844,4]
[402123812,1768531846614,-201.93286099,0.00019844,4]
[402123814,1768531846623,-151.0,0.00019844,4]
[402123816,1768531846633,-2150.738,0.00019844,4]
[402123818,1768531846642,-209.40437684,0.00019844,4]
[402123820,1768531846653,-1000.0,0.00019844,4]
[402123822,1768531846662,-2230.315306,0.00019844,4]
[402123824,1768531846671,-151.0,0.00019844,4]
[402123826,1768531846680,-217.15233878,0.00019844,4]
[402123828,1768531846689,-1000.0,0.00019844,4]
[402123830,1768531846698,-2312.83697232,0.00019844,4]
[402123832,1768531846708,-151.0,0.00019844,4]
[402123834,1768531846717,-225.18697532,0.00019844,4]
[402123836,1768531846727,-1000.0,0.00019844,4]
[402123838,1768531846736,-2398.4119403,0.00019844,4]
[402123840,1768531846746,-151.0,0.00019844,4]
[402123842,1768531846755,-233.51889341,0.00019844,4]
[402123844,1768531846764,-1000.0,0.00019844,4]
[402123846,1768531846774,-151.0,0.00019844,4]
[402123848,1768531846783,-2487.15318209,0.00019844,4]
[402123850,1768531846793,-151.0,0.00019844,4]
[402123852,1768531846802,-242.15909246,0.00019844,4]
[402123854,1768531846812,-1000.0,0.00019844,4]
[402123856,1768531846821,-151.0,0.00019844,4]
[402123858,1768531846830,-2579.17784983,0.00019844,4]
[402123860,1768531846840,-151.0,0.00019844,4]
[402123862,1768531846849,-251.11897888,0.00019844,4]
[402123864,1768531846859,-1000.0,0.00019844,4]
[402123867,1768531846869,-2674.60743027,0.00019844,4]
[402123869,1768531846878,-151.0,0.00019844,4]
[402123871,1768531846887,-260.4103811,0.00019844,4]
[402123873,1768531846897,-1000.0,0.00019844,4]
[402123875,1768531846906,-151.0,0.00019844,4]
[402123877,1768531846916,-270.0455652,0.00019844,4]
[402123879,1768531846925,-1000.0,0.00019844,4]
[402123882,1768531846938,-151.0,0.00019844,4]
[402123884,1768531846959,-280.03725112,0.00019844,4]
[402123886,1768531846969,-1000.0,0.00019844,4]
[402123888,1768531846980,-151.0,0.00019844,4]
[402123890,1768531846990,-290.39862941,0.00019844,4]
[402123893,1768531847000,-1000.0,0.00019844,4]
[402123895,1768531847011,-201.00054159,0.00019844,4]
[402123897,1768531847021,-445.202766,0.00019844,4]
[402123899,1768531847032,-301.1433787,0.00019844,4]
[402123901,1768531847042,-1000.0,0.00019844,4]
[402123903,1768531847054,-461.67526834,0.00019844,4]
[402123905,1768531847065,-1000.0,0.00019844,4]
[402123907,1768531847074,-478.75725327,0.00019844,4]
[402123909,1768531847084,-151.0,0.00019844,4]
[402123912,1768531847093,-250.0,0.00019844,4]
[402123914,1768531847103,-1000.0,0.00019844,4]
[402123916,1768531847114,-496.47127164,0.00019844,4]
[402123918,1768531847124,-250.0,0.00019844,4]
[402123920,1768531847134,-151.0,0.00019844,4]
[402123922,1768531847145,-1000.0,0.00019844,4]
[402123924,1768531847155,-514.84070869,0.00019844,4]
[402123926,1768531847165,-250.0,0.00019844,4]
[402123929,1768531847174,-151.0,0.00019844,4]
[402123931,1768531847184,-1000.0,0.00019844,4]
[402123933,1768531847195,-533.88981491,0.00019844,4]
[402123935,1768531847205,-250.0,0.00019844,4]
[402123937,1768531847215,-151.0,0.00019844,4]
[402123939,1768531847224,-1000.0,0.00019844,4]
[402123941,1768531847234,-553.64373807,0.00019844,4]
[402123943,1768531847243,-151.0,0.00019844,4]
[402123945,1768531847252,-250.0,0.00019844,4]
[402123947,1768531847261,-574.12855637,0.00019844,4]
[402123949,1768531847270,-151.0,0.00019844,4]
[402123951,1768531847280,-250.0,0.00019844,4]
[402123953,1768531847289,-595.78461022,0.00019844,4]
[402123955,1768531847299,-151.0,0.00019844,4]
[402123957,1768531847308,-250.0,0.00019844,4]
[402123959,1768531847319,-151.0,0.00019844,4]
[402123961,1768531847328,-250.0,0.00019844,4]
[402123963,1768531847338,-250.0,0.00019844,4]
[402123966,1768531847348,-250.0,0.00019844,4]
[402123968,1768531847357,-250.0,0.00019844,4]
[402123970,1768531847368,-255.45563633,0.00019844,4]
[402123972,1768531847377,-454.65002397,0.00019845,4]
[402123974,1768531847386,-1582.0,0.00019849,2]
[402123976,1768531847396,-1304.0,0.0001986,2]
[402123978,1768531847405,-50810.5374008,0.00019888,2]
[402123980,1768531847416,-151.0,0.000199,2]
[402123982,1768531847426,-151.0,0.000199,2]
[402123984,1768531847436,-151.0,0.000199,2]
[402123986,1768531847447,-151.0,0.000199,2]
[402123989,1768531847456,-151.0,0.000199,2]
[402123991,1768531847466,-151.0,0.000199,2]
[402123993,1768531847476,-5000.0,0.00019911,2]
[402123995,1768531847486,-1581.731909,0.0001992,5]
[402123997,1768531847495,-800.0,0.00019922,2]
[402123999,1768531847505,-380.6,0.00019925,2]
[402124001,1768531847514,-800.0,0.00019928,2]
[402124003,1768531847525,-1000.0,0.0001994,5]
[402124005,1768531847535,-800.0,0.0001994,2]
[402124007,1768531847545,-3864.68676888,0.00019945,7]
[402124009,1768531847555,-3535.16039033,0.00019945,7]
[402124011,1768531847565,-4288.2876741,0.00019948,2]
[402124013,1768531847576,-3154.735365,0.00019948,2]
[402124015,1768531847586,-454.0036719,0.00019948,2]
[402124017,1768531847596,-151.91326675,0.0001995,2]
[402124019,1768531847606,-530.11136123,0.0001995,2]
[402124021,1768531847616,-2120.44544491,0.0001995,2]
[402124023,1768531847628,-4766.23124879,0.0001995,2]
[402124026,1768531847638,-460.83235681,0.0001995,2]
[402124027,1768531847648,-1843.32942725,0.0001995,2]
[402124030,1768531847659,-4147.49121131,0.0001995,2]
[402124032,1768531847670,-7373.31770899,0.0001995,2]
[402124033,1768531847680,-421.53902549,0.0001995,2]
[402124034,1768531847689,-1686.15610197,0.0001995,2]
[402124035,1768531847700,-3793.85122942,0.0001995,2]
[402124036,1768531847709,-6744.62440786,0.0001995,2]
[402124037,1768531847719,-1049.6475633,0.0001995,2]
[402124038,1768531847728,-1499313.7408446,0.0001995,2]